Cogmind - Beta 12 @@@ ROGUE MODE // 2024.01.29 @ 13:32:34 // Winter2022/Polymind Player: BVrutally Odd Result: Destroyed by Y-45 Defender with Beam Rifle Performance ------------- Evolutions (1) 500 Regions Visited (2) 400 Robots Destroyed (7) 35 Value Destroyed (115) 115 Prototype IDs (0) 0 Alien Tech Used (0) 0 Bonus (730) 730 TOTAL SCORE: 1630 Bonus ------- Polymind Skill 730 Cogmind --------- Core Integrity 0/400 Matter 0/0 Energy 25/25 System Corruption 0% Temperature Cool (27) Movement Core (100) Ox1 Location -9/Materials Parts ------- > --- POWER (1) -------- (None) > --- PROPULSION (2) --- (None) > --- UTILITY (2) ------ Small Storage Unit > --- WEAPON (0) ------- (None) > --- INVENTORY (4) ---- Light Ion Engine Wheel Structural Scanner Peak State ------------ > --- POWER ------------ Improved Ion Engine > --- PROPULSION ------- Light Treads Light Treads > --- UTILITY ---------- Heat Sink Heat Sink Light Armor Plating > --- WEAPON ----------- Beam Rifle Heavy Assault Rifle > --- INVENTORY -------- (None) [Rating: 11] Favorites ----------- Power Light Ion Engine Engine Light Ion Engine Propulsion Wheel Treads Light Treads Leg Aluminum Leg Wheel Wheel Utility Heat Sink Device Heat Sink Storage Small Storage Unit Protection Light Armor Plating Weapon Mining Laser Energy Gun Small Laser Ballistic Gun Heavy Assault Rifle Special Weapon Mining Laser Build | -11 -10 -9 ------- Run | Jun Mat Mat Slots Evolved . | . . . Power . | . . . Propulsion . | . . . Utility . | . . . Weapon . | . . . Parts Attached . | . . . Power . | . . . Engine . | . . . Core . | . . . Reactor . | . . . Propulsion . | . . . Treads . | . . . Leg . | . . . Wheel . | . . . Hover . | . . . Flight . | . . . Utility . | . . . Device . | . . . Storage . | . . . Processor . | . . . Hackware . | . . . Protection . | . . . Artifact . | . . . Weapon . | . . . Energy Gun . | . . . Energy Cannon . | . . . Ballistic Gun . | . . . Ballistic Cannon . | . . . Launcher . | . . . Special Weapon . | . . . Impact Weapon . | . . . Slashing Weapon . | . . . Piercing Weapon . | . . . Special Melee Weapon . | . . . Unidentified Prototypes . | . . . Parts Lost 5 | . 1 4 Power 1 | . . 1 Propulsion 2 | . . 2 Utility 1 | . . 1 Weapon 1 | . 1 . Highest Loss Streak 4 | . 1 4 To Critical Strikes . | . . . Average Slot Usage (%) 89 | . 100 82 Engine 15 | . 18 14 Treads 3 | . . 4 Leg 19 | . 20 19 Wheel 10 | . 16 6 Device 19 | . 26 15 Storage 3 | . . 5 Protection 1 | . . 2 Energy Gun 11 | . 10 11 Ballistic Gun 1 | . . 2 Special Weapon 2 | . 8 . Naked Turns 8 | . . 8 Heaviest Build 18 | 6 7 18 Greatest Support 40 | 20 20 40 Greatest Overweight (x) . | . . . Average Overweight (x) . | . . . Largest Inventory Capacity 4 | . 1 4 Average Capacity . | . . 1 Most Carried 3 | . . 3 Average Carried . | . . . Final Capacity 4 | . 1 4 Final Carried 3 | . . 3 Class Distribution -------------------- 48% | Grunt 18% | Tunneler 16% | Recycler 13% | Sentry Dominant Class ---------------- Tunneler | -10/Materials Grunt | -9/Materials Resources | -11 -10 -9 ----------- Run | Jun Mat Mat Matter Collected 24 | . . 24 Remotely . | . . . Salvage Created 207 | . 49 158 Parts 16 | . 6 10 Haulers Intercepted . | . . . Recyclers Shooed 1 | . . 1 Parts Field Recycled . | . . . Retrieved Matter . | . . . Parts Self-Destructed . | . . . Prevented . | . . . Kills | -11 -10 -9 ------- Run | Jun Mat Mat Combat Hostiles Destroyed 5 | . 3 2 Guns 5 | . 3 2 Classes Destroyed 5 | . 2 3 Worker 1 | . 1 . Builder 1 | . . 1 Swarmer 3 | . 3 . Grunt 1 | . . 1 Sentry 1 | . . 1 Best Kill Streak 4 | . 4 2 Combat Bots Only 3 | . 3 1 Max Kills in Single Turn 2 | . 1 2 Gunslinging . | . . . Exploded . | . . . Melee . | . . . Uniques/NPCs Destroyed . | . . . Combat | -11 -10 -9 -------- Run | Jun Mat Mat Damage Taken 1179 | . 328 851 Core 462 | . 61 401 Absorbed by Shields . | . . . Core Remaining (%) 87 | 100 75 . Volleys Fired 28 | . 19 9 Largest 2 | . 1 2 Hottest 100 | . 100 79 Shots Fired 37 | . 19 18 Gun 33 | . 15 18 Cannon . | . . . Launcher . | . . . Special 4 | . 4 . Kinetic 9 | . . 9 Thermal 28 | . 19 9 Explosive . | . . . Electromagnetic . | . . . Robot Hit Streak 6 | . 6 3 Robot Miss Streak 3 | . 2 3 Penetration Max . | . . . Secondary Targets . | . . . Shots Hit Robots 20 | . 11 9 Core Hits 8 | . 4 4 Critical Kills . | . . . Critical Parts Destroyed . | . . . Critical Strikes . | . . . Melee Attacks . | . . . Impact . | . . . Slashing . | . . . Piercing . | . . . Sneak Attacks . | . . . Combat Hostiles . | . . . Follow-up Attacks . | . . . Damage Inflicted 327 | . 153 174 Guns 298 | . 124 174 Cannons . | . . . Explosions . | . . . Melee . | . . . Ramming 5 | . 5 . Kinetic 67 | . . 67 Thermal 255 | . 148 107 Explosive . | . . . Electromagnetic . | . . . Impact . | . . . Slashing . | . . . Piercing . | . . . Highest Corruption . | . . . Average Corruption . | . . . Corruption Purged . | . . . Corruption Blocked . | . . . Overload Shots . | . . . Overflow Damage . | . . . Projectiles . | . . . Explosions . | . . . Melee . | . . . Knockbacks . | . . . Impact . | . . . Kinetic . | . . . Secondary . | . . . Self-Inflicted Damage . | . . . Shots . | . . . Rammed . | . . . Targets Rammed 4 | . 4 . Kicked 4 | . 4 . Crushed . | . . . Highest Temperature 261 | . 261 19 Average Temperature 64 | . 102 7 Received Heat Transfer 339 | . 84 255 Effects 2 | . 2 . Interference 2 | . 2 . Siege Activations . | . . . Robots Corrupted . | . . . Combat Hostiles . | . . . Parts Fried . | . . . Impact Corruptions . | . . . Robots Melted . | . . . Combat Hostiles . | . . . Parts Melted . | . . . Heat Transferred 584 | . 325 259 Parts Sabotaged . | . . . Parts Stolen . | . . . Parts Stripped . | . . . Power Chain Reactions . | . . . Missiles Intercepted . | . . . Alert | -11 -10 -9 ------- Run | Jun Mat Mat Peak Influence 268 | . 187 268 Initial 78 | . . 78 Average 88 | . 100 159 Maximum Alert Level 1 | . . 1 Low Security (%) 83 | 100 100 59 Level 1 16 | . . 40 Level 2 . | . . . Level 3 . | . . . Level 4 . | . . . Level 5 . | . . . High Security . | . . . Max Security . | . . . Squads Dispatched 1 | . 1 . Investigation 1 | . 1 . Extermination . | . . . Reinforcement . | . . . Assault . | . . . Garrison . | . . . Intercept . | . . . Searches Triggered . | . . . Construction Impeded . | . . . Haulers Reinforced . | . . . Active Scanning Responses . | . . . Cargo Convoy Interrupts . | . . . Stealth | -11 -10 -9 --------- Run | Jun Mat Mat Distress Signals 1 | . 1 . Communications Jammed . | . . . Distress Signals . | . . . Times Spotted 26 | . 9 17 Peak Tracking Total 9 | . 4 9 Tactical Retreats . | . . . Traps | -11 -10 -9 ------- Run | Jun Mat Mat Traps Triggered 1 | . 1 . Indirectly . | . . . Trap Hack Attempts . | . . . Triggered . | . . . Disarmed . | . . . Reprogrammed . | . . . Reused . | . . . Traps Extracted . | . . . Installed . | . . . Triggered . | . . . Machines | -11 -10 -9 ---------- Run | Jun Mat Mat Machines Disabled . | . . . Max in Single Turn . | . . . Machines Repaired . | . . . Machines Sabotaged . | . . . Overloaded Fab Kills . | . . . Hacking | -11 -10 -9 --------- Run | Jun Mat Mat Machines Accessed . | . . . Terminals . | . . . Fabricators . | . . . Repair Stations . | . . . Recycling Units . | . . . Scanalyzers . | . . . Garrison Access . | . . . Total Hacks . | . . . Successful . | . . . Failed . | . . . Catastrophic . | . . . Database Lockouts . | . . . Manual . | . . . Terminals . | . . . Fabricators . | . . . Repair Stations . | . . . Recycling Units . | . . . Scanalyzers . | . . . Garrison Access . | . . . Terminal Hacks . | . . . Fabricator Hacks . | . . . Repair Station Hacks . | . . . Recycling Unit Hacks . | . . . Scanalyzer . | . . . Garrison Access Hacks . | . . . Unauthorized Hacks . | . . . Terminals . | . . . Fabricators . | . . . Repair Stations . | . . . Recycling Units . | . . . Scanalyzers . | . . . Garrison Access . | . . . Data Cores Recovered . | . . . Used . | . . . Hacking Detections . | . . . Full Trace Events . | . . . Feedback Events . | . . . Feedback Blocked . | . . . Robot Schematics Acquired . | . . . Robots Built . | . . . Authchips . | . . . Time . | . . . Total Robot Build Rating . | . . . Part Schematics Acquired . | . . . Parts Built . | . . . Authchips . | . . . Time . | . . . Total Part Build Rating . | . . . Parts Repaired . | . . . Time . | . . . Parts Recycled . | . . . Recycled Matter . | . . . Retrieved Matter . | . . . Retrieved Components . | . . . Parts Scanalyzed . | . . . Part Schematics Acquired . | . . . Parts Damaged . | . . . Bothacking | -11 -10 -9 ------------ Run | Jun Mat Mat Used RIF Installer . | . . . Robots Hacked 3 | . 1 2 Non-combat 1 | . . 1 Combat 2 | . 1 1 Robot Hacks Applied 3 | . 1 2 find_recycling 1 | . . 1 find_shortcuts 2 | . 1 1 Relay Couplers Released . | . . . Fabnet Peak Effective % . | . . . Robots Rewired . | . . . Allies Hacked . | . . . Hacks Repelled . | . . . Allies | -11 -10 -9 -------- Run | Jun Mat Mat Total Allies . | . . . Largest Group . | . . . Highest-Rated Group . | . . . Highest-Rated Ally . | . . . Total Orders . | . . . Ally Attacks . | . . . Total Damage . | . . . Kills . | . . . Allies Corrupted . | . . . Allies Melted . | . . . Intel | -11 -10 -9 ------- Run | Jun Mat Mat Robot Analysis Total 4 | 1 1 2 Derelict Logs Recovered . | . . . Drone Launches . | . . . Drone Recoveries . | . . . Exploration | -11 -10 -9 ------------- Run | Jun Mat Mat Turns Passed 511 | 184 119 208 Spaces Moved 260 | 68 63 129 Core 26 | 13 . 13 Treads 11 | . . 11 Legs 94 | . 18 76 Wheels 129 | 55 45 29 Hover . | . . . Flight . | . . . Fastest Speed 50 | 50 80 50 Average Speed 97 | 74 91 111 Slowest Speed 160 | 80 120 160 Overloaded Moves . | . . . Propulsion Burnouts . | . . . Robots Hopped . | . . . Cave-ins Triggered . | . . . Exploration Rate (%) 14 | 6 22 15 Regions Visited 2 Branch Regions . Pre-discovered Areas . | . . . Known Exits Taken . | . . . Unknown Exits Taken 2 | 1 1 . Scrap Searched . | . . . Spaces Dug 1 | . 1 . Terrain Destroyed 2 | . 2 . Melee . | . . . Projectile 2 | . 2 . AOE . | . . . Terrain Rammed . | . . . Walls Destroyed . | . . . Machines Disabled . | . . . Actions | -11 -10 -9 --------- Run | Jun Mat Mat Total 471 | 201 96 174 Wait 156 | 113 11 32 Move 259 | 67 63 129 Hop . | . . . Pick Up 3 | . . 3 Fast Attach . | . . . Attach . | . . . Detach . | . . . Swap . | . . . Drop . | . . . Fire 28 | . 19 9 Melee . | . . . Ram . | . . . Kick 3 | . 3 . Crush . | . . . Escape Stasis . | . . . Rewire 1 | . . 1 Trap . | . . . Miscellaneous 21 | 21 . . Route ------- -11/Junkyard -10/Materials -9/Materials History --------- Turn | Location | Event 4 | -11/Junkyard | Discovered new exit (range 12) 185 | -11/Junkyard | Entered Materials 254 | -10/Materials | Discovered new exit (range 10) 304 | -10/Materials | Entered another Materials area 498 | -9/Materials | Core integrity fell below 50% 508 | -9/Materials | Core integrity fell below 20% 512 | -9/Materials | Destroyed by Y-45 Defender with Beam Rifle Last Messages --------------- 00457_ Took control of R-06 Scavenger. 00457_ Extracted analysis data for R-06 Scavenger. 00457_ Y-45 Defender reactivates. 00459_ Acquired Structural Scanner. 00461_ Acquired Lgt. Ion Engine. 00463_ Acquired Wheel. 00464_ Tractor Beam destroyed. 00478_ K-01 Serf collects debris. 00481_ Com. Wheel destroyed. 00482_ Lgt. Ion Engine destroyed. 00487_ K-01 Serf collects debris. 00493_ S-10 Pest destroyed. 00494_ K-01 Serf collects debris. 00494_ Com. Wheel destroyed. 00502_ R-06 Scavenger collects Lgt. Assault Rifle. 00505_ R-06 Scavenger collects Lgt. Ion Engine. 00506_ Critical hit (Burn: +37). 00508_ K-01 Serf cleans the Processing Tank. 00510_ R-06 Scavenger collects Flight Unit. 00512_ Critical hit (Burn: +37). Map ----- +----------------------------------------------------+ | ?????????????????????????????????????????????????? | | ?????????????????????????????????????????????????? | | ?????????????????????????????????????????????????? | | ?????????????????????????????????????????????????? | | ?????????????????????????????????????????????????? | | ?????????????????????????????????????????????????? | | ?????????????????????????????????????????????????? | | ?????????????????????????????????????????????????? | | ?????????????????????????????????????????????????? | | ?????????????????????????????????????????????????? | | ?????????????????????????????????????????????????? | | ?????????????????????????????????????????????????? | | ?????????????????????????????????????????????????? | | ??????????????????????????????[??????????????????? | | ?????????????????????????????????????????????????? | | ?????????????????????????????????????????????????? | | ????????????????????????????????????=???????+????? | | ?????????????????????????????????????????????????? | | ?????????????????????????????????????????????????? | | ????????????????????????????????????????????+????? | | ?????????????????????????????????????????????????? | | ??????????????????##############?????????????????? | | ??????????????????# """"" #??????????+??????? | | ??????????????????# """"" #?????????????????? | | ??????????????????# """"" #?????????????????? | | ??????????????????# rskr #???#??????+??????? | | ??????????????????# ssY ### ###???????????? | | ??????????????????##########Y### #???????????? | | ??????????????????????????# gg #???????????? | | ??????????????????????????# +???????????? | | ??????????????????????????# #???????????? | | ??????????????????????????## ### #???????????? | | ???????????????????????????# #??##+###????+??????? | | ???????????????????????????# #???????????????????? | | ???????????????????????????# #???????????????????? | | ???????????????????????????# #???????????????????? | | ???????????????????????????# #???????????????????? | | ???????????????????######### #???????????????????? | | ???????????????????# ## #????????????+??????? | | ?????????##????????# ## #??????????????/????? | | ????? ?T #???????# """ ## #???????????????????? | | ?????# #???????# """ ## #???????????????????? | | ?????# """ #???????# """ ## #???????????????????? | | ?????# """ #???????# ## #???????????????????? | | ?????# """ #???????######+## #???????????????????? | | ?????# #????#######?# #???????????????????? | | ?????# [ ###### %#?# #???????????????????? | | ?????# # =### | #???????????????????? | | ?????#// " [%*% #???????????????????? | | ?????#/ ] # !###+##+#???????????????????? | +----------------------------------------------------+ Best States ------------- Heat Dissipation 36 Energy Generation 17 Energy Capacity 215 Matter Stores 97 Matter Capacity 100 Sight Range 16 Terrain Scan Range 16 Terrain Scan Density 10 Armor Coverage 150 Resistance: EX 50 Resistance: I 25 Evasion (%) 55 Recoil Reduction 2 Item Schematics ----------------- None Robot Schematics ------------------ None Fabricated ------------ Nothing Alien Tech Used ----------------- None Achievements -------------- None Challenges ------------ None Polymind | -11 -10 -9 ---------- Run | Jun Mat Mat Hosts 4 | 1 1 2 Combat Hostiles 2 | . 1 1 Allies . | . . . Unique Host Classes 4 | 1 1 2 Average Host Suspicion 57 | 15 87 75 Unsuspicious Activity 109 | 107 . 2 Returns to Shadow . | . . . Fuzzy Dispatches . | . . . Protomatter Created 7 | . 4 3 Used 48 | 5 15 28 Decayed . | . . . Highest Spend 23 | 5 15 23 Top 5 Hosts by Kills: G-34 Mercenary (-10/Materials: 3) Y-45 Defender (-9/Materials: 2) Game ------ Seed CentriumReactionCoupler Manual? 0 Play Time 00:08:06 Cumulative 97.6 hours Start 2024.01.29 @ 13:26:26 End 2024.01.29 @ 13:32:34 Sessions 1 Manual Loads 0 Difficulty Rogue Special Mode Winter2022/Polymind Game No. 49 Rogue 12 Adventurer 16 Explorer 21 Win Type - Total 17 Types 12/4/0/0/0/0/0/1/0 Lore% 66 Gallery% 72 Achievement% 67 Wizard Run 0 Options --------- ASCII 0 Keyboard 0 Movement Mouse Keybinds 0 Fullscreen 1 Font 24/Terminus Map View 76x50 Tactical HUD 1 Map Filters NONE Filters NONE Steam 1 RUN: 395e726f-89fb-44c6-83c0-dee3da2fdcd8